bitfinex/quotes_ETHUSD_20241223
["timestamp","ask_amount","ask_price","bid_price","bid_amount"]
[1734934552639,0.8072,3293.6,3292.1,0.8322]
[1734934553340,3.03657,3293.2,3292.1,0.8322]
[1734934553653,3.03676,3293.0,3292.1,0.8322]
[1734934553861,0.55,3293.5,3292.1,0.8322]
[1734934554016,3.03715,3292.6,3292.1,0.8322]
[1734934555834,3.0375,3292.2,3291.7,0.7544]
[1734934556046,0.7923,3292.7,3291.7,0.7544]
[1734934556197,3.03775,3292.0,3291.7,0.7544]
[1734934556401,0.303775,3292.0,3290.6,0.7544]
[1734934556631,6.4,3292.4,3290.6,0.7544]
[1734934556846,3.03685,3292.9,3291.5,3.03808]
[1734934557161,6.4,3293.1,3291.9,3.03775]
[1734934557301,6.4,3293.1,3292.0,0.7591]
[1734934557496,0.943661,3293.0,3292.0,0.7591]
[1734934557698,6.4,3293.1,3292.0,0.7591]
[1734934558317,6.4,3293.1,3292.0,3.79674]
[1734934558522,6.4,3293.1,3292.0,0.7591]
[1734934560160,9.43667,3293.1,3292.0,0.7591]
[1734934560954,6.4,3293.1,3292.0,0.7591]
[1734934561249,0.64,3293.0,3292.0,0.7591]
[1734934561413,3.67674,3293.0,3292.0,0.7591]
[1734934561999,0.7671,3292.9,3292.0,0.7591]
[1734934562312,3.03769,3292.0,3291.1,0.8139]
[1734934562527,3.03778,3291.9,3291.1,0.8139]
[1734934562741,3.03729,3292.4,3291.1,0.8139]
[1734934562898,0.303729,3292.3,3291.1,0.8139]
[1734934563347,3.0376,3292.1,3291.1,0.8139]
[1734934564126,0.303729,3292.3,3291.1,0.8139]
[1734934564318,3.03748,3292.2,3291.1,0.8139]
[1734934564518,0.303729,3292.3,3291.1,0.8139]
[1734934564755,3.03784,3291.9,3291.1,0.8139]
[1734934565079,3.03825,3291.4,3291.1,0.8139]
[1734934565350,0.303784,3291.9,3291.1,0.8139]
[1734934565845,3.03804,3291.6,3291.1,0.8139]
[1734934566407,3.341594,3291.9,3291.1,0.8139]
[1734934567129,0.303784,3291.9,3291.1,0.8139]
[1734934567314,6.4,3292.4,3291.1,0.8139]
[1734934567908,3.03758,3292.1,3291.1,0.8139]
[1734934569220,3.03739,3292.3,3291.1,0.8139]
[1734934569545,6.4,3293.0,3292.3,3.03735]
[1734934569747,6.4,3293.0,3292.2,3.03747]
[1734934570051,3.0363,3293.5,3292.2,3.03747]
[1734934570052,9.4363,3293.5,3292.2,3.03747]
[1734934570232,3.03592,3293.9,3292.5,3.03712]
[1734934570407,6.4,3294.0,3292.6,0.795]
[1734934570609,6.4,3294.0,3293.0,3.03672]
[1734934570807,6.4,3294.0,3293.4,3.03634]
[1734934571007,6.4,3294.0,3293.2,0.795]
[1734934571250,6.4,3294.0,3293.7,0.795]
[1734934574456,6.4,3295.1,3293.7,0.795]
[1734934574659,1.85948829,3296.5,3293.7,0.795]
[1734934574660,6.4,3295.6,3294.4,3.03543]
[1734934574947,3.03403,3296.0,3294.7,3.03513]
[1734934575153,7.1601,3296.2,3294.5,0.8332]
[1734934575454,3.0341,3295.9,3294.5,3.86853]
[1734934575654,10.19391,3296.2,3294.5,3.86853]
[1734934575958,3.03418,3295.8,3294.5,3.86853]
[1734934576161,4.053341,3296.1,3294.8,3.03505]
[1734934576333,6.4,3296.5,3295.4,3.03448]
[1734934576536,6.4,3296.5,3295.5,3.82919]
[1734934576735,6.4,3296.5,3295.5,0.7948]
[1734934577833,6.4,3296.5,3296.1,3.03384]
[1734934578038,0.9927415,3297.1,3295.6,3.93253098]
[1734934578039,6.4,3297.0,3296.2,0.8283]
[1734934578763,6.4,3297.0,3296.2,3.86207]
[1734934578972,6.4,3297.0,3296.2,0.8283]
[1734934579779,6.4,3297.0,3296.3,3.03366]
[1734934580374,6.4,3297.0,3296.4,3.03358]
[1734934580591,6.4,3297.0,3296.7,0.7962]
[1734934582081,6.4,3297.0,3296.7,3.82947]
[1734934582379,6.4,3297.0,3296.9,0.7962]
[1734934582670,5.13471497,3297.0,3296.9,0.7962]
[1734934583344,3.0332,3296.9,3296.5,0.7962]
[1734934583549,3.87471497,3297.0,3295.6,3.93253098]
[1734934583550,3.87471497,3297.0,3295.7,0.7962]
[1734934584068,3.87471497,3297.0,3296.1,3.03387]
[1734934584271,3.87471497,3297.0,3296.3,0.7962]
[1734934585373,3.03365,3296.4,3295.1,3.93253098]
[1734934585666,3.034,3296.0,3295.2,0.7671]
[1734934585873,0.55,3296.8,3295.2,0.7671]
[1734934586037,3.03394,3296.1,3295.2,0.7671]
[1734934586468,3.03417,3295.8,3295.2,0.7671]
[1734934586976,3.03399,3296.0,3295.2,0.7671]
[1734934587271,3.0,3296.6,3295.2,0.7671]
[1734934587431,6.0335,3296.6,3295.2,0.7671]
[1734934587636,3.0335,3296.6,3295.2,0.7671]
[1734934587943,3.0,3296.1,3295.2,0.7671]
[1734934588136,3.30335,3296.5,3295.2,0.7671]
[1734934588360,3.03393,3296.1,3295.2,0.7671]
[1734934589275,3.0,3296.2,3295.2,0.7671]
[1734934589685,3.30335,3296.5,3295.2,0.7671]
[1734934589843,3.03399,3296.0,3295.2,0.7671]
[1734934590046,3.0,3296.2,3295.2,0.7671]
[1734934590245,3.03392,3296.1,3295.2,0.7671]
[1734934590448,0.633678,3296.4,3295.2,0.7671]
[1734934590752,3.03422,3295.8,3294.8,0.7744]
[1734934590989,0.55,3296.1,3294.8,0.7744]
[1734934591205,3.86607,3296.2,3294.8,0.7744]
[1734934591351,3.86561,3296.7,3294.8,0.7744]
[1734934591547,3.86561,3296.7,3294.6,3.93253098]
[1734934591548,3.87471497,3297.0,3295.3,0.7744]
[1734934591750,6.90781497,3297.0,3295.8,3.80856]
[1734934592064,3.87471497,3297.0,3295.8,3.80856]
[1734934592407,3.87471497,3297.0,3295.8,0.7744]
[1734934592408,3.03315,3296.9,3295.8,0.7744]
[1734934592748,3.87471497,3297.0,3295.8,0.7744]
[1734934593063,3.03318,3296.9,3295.8,0.7744]
[1734934593267,3.03318,3296.9,3295.9,0.380862]
[1734934593457,3.87471497,3297.0,3295.9,0.380862]
[1734934593664,3.87471497,3297.0,3295.9,3.03406]
[1734934594079,3.87471497,3297.0,3296.1,3.03387]
[1734934594288,3.87471497,3297.0,3296.2,0.7712]
[1734934595380,3.87471497,3297.0,3296.4,3.0336]
[1734934595699,3.87471497,3297.0,3296.2,3.80492]
[1734934596001,3.87471497,3297.0,3296.3,0.380492]
[1734934596395,3.87471497,3297.0,3296.3,3.380492]
[1734934596599,3.87471497,3297.0,3296.6,3.03335]
[1734934597406,3.87471497,3297.0,3296.7,0.7975]
[1734934597916,3.87471497,3297.0,3296.9,6.03315]
[1734934598065,3.87471497,3297.0,3296.9,7.524015]
[1734934599697,1.2608,3298.5,3298.4,0.0264]
[1734934599897,1.2608,3298.5,3298.4,4.26475198]
[1734934600073,1.2608,3298.5,3298.4,7.26475198]
[1734934600704,1.2608,3298.5,3298.4,3.332221]
[1734934601880,1.2608,3298.5,3298.4,0.332221]
[1734934602073,1.2608,3298.5,3298.4,0.0264]
[1734934602490,1.2608,3298.5,3297.6,0.0267]
[1734934604720,3.03193,3298.3,3297.2,0.0267]
[1734934604909,3.03247,3297.7,3296.6,0.0267]
[1734934605108,3.03253,3297.6,3296.6,0.0267]
[1734934605314,3.03269,3297.4,3296.6,0.0267]
[1734934605625,3.03297,3297.1,3296.0,0.0267]
[1734934606106,0.55,3297.4,3295.5,0.0267]
[1734934606291,0.55,3297.2,3295.5,0.0267]
[1734934606647,3.85205,3296.9,3295.5,0.0267]
[1734934606790,3.03376,3296.3,3295.5,0.0267]
[1734934607393,0.55,3296.5,3295.1,0.0267]
[1734934607723,0.55,3296.5,3294.5,0.59186571]
[1734934607724,3.03466,3295.3,3294.5,0.0267]
[1734934607939,3.55,3295.6,3294.0,0.0267]
[1734934608102,3.03491,3295.0,3294.0,0.0267]
[1734934608507,3.0,3295.6,3294.0,0.0267]
[1734934608688,0.55,3295.5,3294.2,3.03561]
[1734934608917,0.8056,3295.8,3294.0,0.0267]
[1734934609125,3.0,3296.0,3294.6,3.03522]
[1734934609341,3.713943,3296.0,3294.7,3.338672]
[1734934609707,0.679933,3296.0,3294.9,3.03498]
[1734934610127,3.7654,3296.2,3295.0,0.0267]
[1734934610325,0.7654,3296.2,3295.1,3.03478]
[1734934610535,0.7654,3296.2,3295.0,3.06157]
[1734934610841,0.7654,3296.2,3295.0,0.0267]
[1734934611018,0.7654,3296.2,3295.1,3.03477]
[1734934611224,0.7654,3296.2,3295.2,0.306147]
[1734934611548,3.79921,3296.2,3295.2,0.306147]
[1734934611844,3.79921,3296.2,3295.0,0.0267]
[1734934612243,3.03394,3296.1,3295.0,0.0267]
[1734934612540,3.03408,3295.9,3295.0,0.0267]
[1734934612844,3.03396,3296.1,3294.6,0.0267]
[1734934613155,3.03396,3296.1,3294.8,3.03506]
[1734934613452,3.03396,3296.1,3294.9,0.303506]
[1734934613606,3.03408,3295.9,3294.9,0.303506]
[1734934613802,0.7654,3296.2,3294.7,3.03515]
[1734934614003,0.55,3296.1,3294.6,0.0267]
[1734934614245,3.03431,3295.7,3294.6,0.0267]
[1734934614616,0.55,3296.1,3294.6,0.0267]
[1734934614617,3.03445,3295.5,3294.6,0.0267]
[1734934614838,3.0,3295.7,3294.6,0.0267]
[1734934615754,0.43492,3296.0,3294.7,3.03516]
[1734934615957,3.03429,3295.7,3294.6,0.0267]
[1734934616243,3.03436,3295.6,3294.6,0.0267]
[1734934616447,3.337796,3295.6,3294.6,0.0267]
[1734934616850,0.303436,3295.6,3294.6,0.0267]
[1734934617150,0.43492,3296.0,3294.6,0.0267]
[1734934617317,3.31699785,3296.1,3294.7,3.03516]
[1734934617517,0.7654,3296.2,3294.6,0.0267]
[1734934618110,3.7654,3296.2,3294.6,0.0267]
[1734934618309,0.55,3296.1,3294.6,0.0267]
[1734934618556,3.03437,3295.6,3294.6,0.0267]
[1734934618913,3.55,3295.9,3294.6,0.0267]
[1734934619447,3.0,3295.9,3294.6,3.06193]
[1734934619751,3.03403,3296.0,3294.7,3.03517]
[1734934620049,3.03403,3296.0,3294.8,0.306187]
[1734934620412,0.55,3296.1,3294.8,0.306187]
[1734934620608,0.7654,3296.2,3295.0,3.03489]
[1734934621154,3.7654,3296.2,3295.0,3.03489]
[1734934621452,0.31697506,3296.5,3295.3,0.0267]
[1734934621648,3.03398,3296.0,3295.1,0.303489]
[1734934621852,3.03361,3296.4,3294.9,0.0267]
[1734934622348,3.03475,3295.2,3294.2,0.0267]
[1734934622524,3.03481,3295.1,3294.2,0.0267]
[1734934622721,0.8154,3295.4,3294.5,1.26517408]
[1734934623054,3.03517,3294.7,3294.5,1.26517408]
[1734934623415,0.8154,3294.6,3294.5,1.26517408]
[1734934624017,0.8154,3294.6,3293.4,0.0267]
[1734934624018,3.03536,3294.5,3293.4,0.0267]
[1734934624415,3.58496,3295.0,3293.7,3.03609]
[1734934624638,3.0,3295.3,3294.0,3.0358]
[1734934624841,3.0,3295.3,3294.2,0.0267]
[1734934625036,0.7879,3295.5,3294.2,0.0267]
[1734934625281,3.03427,3295.7,3294.2,0.0267]
[1734934625443,0.7879,3295.6,3293.2,3.03652]
[1734934625653,3.03559,3294.3,3293.1,3.03659]
[1734934625850,1.26,3294.4,3293.2,0.306329]
[1734934626152,1.26,3294.4,3293.0,0.0267]
[1734934626351,3.03556,3294.3,3293.0,3.06344]
[1734934626852,3.03556,3294.3,3293.1,3.03662]
[1734934627151,3.03603,3293.8,3293.0,0.0267]
[1734934627351,1.26,3294.4,3293.0,0.0267]
[1734934627542,3.03564,3294.2,3293.1,0.306345]
[1734934627853,3.03574,3294.1,3293.1,0.306345]
[1734934628061,1.26,3294.4,3293.0,0.0267]
[1734934628259,4.29546,3294.4,3293.0,3.06343]
[1734934628420,1.26,3294.4,3293.0,0.0267]
[1734934628615,3.03575,3294.1,3293.0,0.0267]
[1734934629933,3.0356,3294.3,3293.0,3.0634]
[1734934630297,1.26,3294.9,3294.0,3.03574]
[1734934630416,3.03481,3295.1,3294.1,0.0267]
[1734934630623,3.03491,3295.0,3294.1,0.0267]
[1734934631176,1.26,3294.5,3293.2,0.0267]
[1734934631474,3.03582,3294.0,3293.2,0.0267]
[1734934631624,3.03558,3294.3,3293.2,0.0267]
[1734934631953,0.7693,3294.5,3293.2,0.0267]
[1734934632152,1.27223,3294.5,3293.2,0.0267]
[1734934632358,3.03556,3294.3,3293.2,0.0267]
[1734934632567,4.27223,3294.5,3293.2,0.0267]
[1734934632776,3.03554,3294.4,3293.2,0.0267]
[1734934632937,4.27223,3294.5,3293.2,0.0267]
[1734934633144,3.0,3294.2,3292.6,0.0267]
[1734934633325,1.26,3293.6,3292.6,0.0267]
[1734934633679,4.26,3294.3,3292.8,0.0267]
[1734934633979,1.26,3294.3,3293.5,0.0267]
[1734934634139,1.26,3294.3,3293.5,0.333004]
[1734934634671,4.26,3294.3,3293.5,0.0267]
[1734934634960,1.26,3294.3,3293.5,0.0267]
[1734934635167,4.26,3294.3,3293.5,0.0267]
[1734934635527,1.26,3294.3,3293.5,0.0267]
[1734934636599,1.26,3294.4,3293.6,3.03618]
[1734934636719,1.26,3294.4,3293.5,0.0267]
[1734934637123,0.8221,3295.1,3293.1,0.0267]
[1734934637124,3.03629,3293.5,3293.1,0.0267]
[1734934637323,3.036,3293.8,3292.3,3.03737]
[1734934637545,3.03614,3293.7,3292.4,3.03729]
[1734934637753,3.03614,3293.7,3292.5,0.0267]
[1734934637951,1.26,3293.9,3292.6,0.306399]
[1734934638470,3.03655,3293.3,3292.5,0.0267]
[1734934638619,0.8092,3293.6,3292.5,0.0267]
[1734934638960,3.03629,3293.5,3292.5,0.0267]
[1734934639158,1.26,3293.7,3292.5,0.0267]
[1734934639339,0.8092,3294.1,3292.5,0.0267]
[1734934639340,1.26,3294.0,3292.8,3.03692]
[1734934639533,1.26,3294.0,3292.9,0.303692]
[1734934639749,1.26,3294.0,3292.5,0.0267]
[1734934640136,1.26,3294.0,3293.0,3.03673]
[1734934640377,1.26,3294.0,3293.1,0.0267]
[1734934640851,1.26,3294.3,3293.1,0.0267]
[1734934641227,1.26,3294.3,3293.3,3.03644]
[1734934641427,1.26,3294.3,3293.4,0.303644]
[1734934642428,1.26,3294.7,3293.4,0.303644]
[1734934642653,3.0,3294.6,3293.1,3.06326]
[1734934643243,1.26,3294.7,3293.4,0.0267]
[1734934643445,1.26,3294.7,3293.8,3.036]
[1734934643931,4.26,3294.7,3293.5,3.0362]
[1734934644350,1.26,3294.7,3293.4,0.0267]
[1734934644553,3.03553,3294.4,3293.4,0.0267]
[1734934644779,3.0,3294.6,3293.4,0.0267]
[1734934644955,1.26,3294.7,3293.4,0.0267]
[1734934645150,4.29439,3295.6,3294.1,0.0267]
[1734934645355,1.57712077,3295.7,3295.0,3.03484]
[1734934645557,1.57712077,3295.7,3294.1,3.60089254]
[1734934645558,1.57712077,3295.7,3295.1,0.330184]
[1734934645793,1.57712077,3295.7,3295.1,0.0267]
[1734934645949,1.26,3295.7,3295.1,0.0267]
[1734934646153,1.26,3296.1,3295.1,0.0267]
[1734934646471,1.26,3296.1,3295.1,3.06149]
[1734934647409,1.26,3296.1,3295.1,0.0267]
[1734934647559,1.26,3296.1,3295.1,0.332869]
[1734934648703,1.26,3296.1,3295.1,0.0267]
[1734934648864,1.26,3296.1,3293.4,5.56605708]
[1734934648865,0.7502,3295.4,3294.2,0.0267]
[1734934649057,0.7502,3295.4,3294.3,3.0355]
[1734934649254,3.55,3296.0,3294.4,3.03542]
[1734934649255,0.7502,3295.8,3294.4,3.03542]
[1734934649467,3.03437,3295.6,3294.4,3.341632]
[1734934649757,0.7502,3295.8,3294.4,0.306212]
[1734934649996,3.03427,3295.7,3294.5,3.03534]
[1734934650155,6.58404,3296.0,3294.5,0.0267]
[1734934650350,7.444484,3296.0,3294.7,3.03516]
[1734934651457,6.894484,3296.0,3294.8,3.03507]
[1734934651790,3.03404,3296.0,3294.8,3.03507]
[1734934651993,1.26,3296.1,3294.6,3.03522]
[1734934652160,3.03421,3295.8,3294.6,3.03522]
[1734934652580,0.7585,3295.9,3294.5,0.0267]
[1734934652787,3.0343,3295.7,3294.5,3.06205]
[1734934652989,3.5842,3295.8,3294.6,0.3368262]
[1734934653371,0.55,3295.8,3294.6,0.3368262]
[1734934653596,3.03446,3295.5,3294.5,0.0267]
[1734934653795,3.03425,3295.7,3294.5,0.0267]
[1734934654302,0.803,3295.2,3294.0,0.0267]
[1734934654504,3.03576,3294.1,3293.9,1.26517408]
[1734934654662,3.03582,3294.0,3293.9,1.26517408]
[1734934655063,3.03591,3293.9,3293.8,1.89695812]
[1734934655795,3.58591,3293.9,3293.8,1.89695812]
[1734934656103,7.35331,3293.9,3293.8,1.89695812]
[1734934656479,7.35331,3293.9,3292.5,3.0372]
[1734934656678,3.03601,3293.8,3292.6,3.0371]
[1734934656878,4.3174,3293.9,3292.4,0.65231785]
[1734934657106,4.3174,3293.9,3292.4,3.65231785]
[1734934657308,0.7674,3293.9,3292.8,3.03692]
[1734934657621,4.29587,3294.0,3292.9,0.0267]
[1734934657803,1.26,3294.0,3292.9,0.0267]
[1734934658108,3.03628,3293.5,3292.9,0.0267]
[1734934658465,1.26,3294.0,3292.9,0.0267]
[1734934658667,2.0274,3294.3,3293.2,3.03655]
[1734934658904,2.0274,3294.3,3293.3,0.303655]
[1734934659401,2.0274,3294.3,3293.1,3.03663]
[1734934659613,2.0274,3294.3,3292.9,0.0267]
[1734934660102,1.26,3294.3,3293.8,0.0267]
[1734934661206,1.26,3295.0,3293.8,0.0267]
[1734934661504,0.8282,3295.5,3293.1,0.84322986]
[1734934661505,2.0882,3295.5,3294.3,3.03552]
[1734934661705,2.0882,3295.5,3294.4,0.303552]
[1734934661870,0.7978,3296.0,3294.5,0.0267]
[1734934662074,0.7978,3296.0,3294.8,3.03507]
[1734934662515,0.7978,3296.0,3294.5,0.0267]
[1734934662721,5.09149,3296.4,3294.7,0.0267]
[1734934662974,3.11948829,3296.6,3295.8,3.03415]
[1734934663140,3.11948829,3296.6,3295.9,0.0267]
[1734934663341,3.11948829,3296.6,3295.9,3.06076]
[1734934663641,3.11948829,3296.6,3296.0,0.306076]
[1734934663787,1.26,3296.6,3296.0,0.306076]
[1734934663989,1.26,3296.6,3295.9,0.0267]
[1734934666414,1.26,3296.9,3295.9,0.0267]
[1734934666619,0.7697,3297.6,3296.4,3.0336]
[1734934667033,3.0326,3297.5,3296.1,3.03381]
[1734934667362,2.0318,3298.0,3296.3,0.0267]
[1734934667541,2.0318,3298.0,3297.1,0.0267]
[1734934667701,1.2608,3298.5,3297.4,3.03266]
[1734934668038,3.03178,3298.4,3297.1,3.05959]
[1734934668214,3.538218,3298.4,3297.2,0.305959]
[1734934668942,3.538218,3298.4,3297.2,3.338819]
[1734934668943,0.506438,3298.4,3297.2,3.338819]
[1734934669125,1.2608,3298.5,3297.3,0.0267]
[1734934669645,0.7718,3298.4,3297.3,0.0267]
[1734934670030,3.03215,3298.0,3296.9,0.0267]
[1734934670549,3.03235,3297.8,3296.9,0.0267]
[1734934670717,0.55,3298.3,3296.9,0.0267]
[1734934670923,3.03212,3298.1,3296.9,0.32937]
[1734934671728,3.03215,3298.0,3296.9,0.32937]
[1734934671926,0.7718,3297.8,3296.6,3.0]
[1734934672847,3.80417,3297.8,3296.6,3.0]
[1734934673012,3.03243,3297.7,3296.6,3.0]
[1734934673415,0.7718,3297.8,3296.6,3.0]
[1734934674038,3.03245,3297.7,3296.5,0.0267]
[1734934674349,0.7718,3297.8,3296.5,3.06019]
[1734934674510,3.03244,3297.7,3296.6,0.306019]
[1734934674850,3.03244,3297.7,3296.5,0.0267]
[1734934675343,0.7718,3297.8,3296.5,3.06021]
[1734934675550,3.80415,3297.8,3296.5,3.06021]
[1734934676946,3.03244,3297.7,3296.5,0.0267]
[1734934677150,3.03244,3297.7,3296.5,3.0267]
[1734934677354,3.03244,3297.7,3296.6,0.606027]
[1734934678232,3.80413,3297.8,3296.6,0.606027]
[1734934678439,0.7718,3297.8,3296.6,3.03342]
[1734934678745,1.26,3298.2,3296.5,0.0267]
[1734934678944,2.0423,3298.2,3296.7,3.0]
[1734934679131,1.26,3298.2,3297.3,3.03276]
[1734934679314,1.26,3298.2,3297.4,0.303276]
[1734934679744,1.26,3298.2,3297.4,3.335956]
[1734934679949,1.26,3298.2,3297.4,0.303276]
[1734934680110,1.26,3298.2,3297.1,3.03289]
[1734934680513,1.26,3298.2,3296.9,0.0267]
[1734934680514,3.03206,3298.1,3296.9,0.0267]
[1734934680731,3.03244,3297.7,3296.5,0.0267]
[1734934681979,3.03252,3297.6,3296.5,0.0267]
[1734934682178,3.03233,3297.8,3296.5,0.0267]
[1734934682351,1.26,3298.0,3296.8,3.03319]
[1734934682537,1.26,3298.0,3296.9,0.303319]
[1734934682733,1.26,3298.0,3296.6,3.0]
[1734934682935,0.8128,3296.7,3295.7,0.0267]
[1734934683134,3.84617,3296.7,3295.7,0.0267]
[1734934683337,0.8128,3296.7,3295.7,0.0267]
[1734934683538,0.8128,3296.7,3295.7,0.332809]
[1734934683733,2.0728,3296.7,3295.2,0.0267]
[1734934683972,0.7983,3296.4,3295.0,1.25680065]
[1734934684175,3.0339,3296.1,3295.0,1.25680065]
[1734934684475,1.26,3296.2,3295.3,0.0267]
[1734934686470,1.26,3296.2,3294.9,3.0]
[1734934686471,1.26,3296.2,3294.9,0.0267]
[1734934686769,3.03416,3295.8,3294.9,0.32937]
[1734934686952,1.26,3295.7,3294.5,0.0267]
[1734934687160,2.0537,3295.6,3293.8,0.0267]
[1734934687407,1.26,3295.6,3294.7,0.0267]
[1734934687697,1.26,3296.0,3295.0,0.0267]
[1734934687838,1.26,3296.0,3295.4,3.03452]
[1734934688688,1.26,3296.0,3295.1,3.03472]
[1734934688840,1.26,3296.0,3295.0,0.0267]
[1734934689037,1.26,3296.0,3295.3,3.03457]
[1734934689308,1.26,3296.0,3295.4,0.303457]
[1734934689497,1.26,3296.0,3295.1,3.03476]
[1734934689796,1.26,3296.0,3295.2,3.03471]
[1734934690890,1.26,3296.0,3295.0,3.0267]
[1734934691300,1.26,3296.0,3295.0,6.06155]
[1734934691591,4.2937,3296.4,3295.0,6.06155]
[1734934691741,4.2937,3296.4,3295.1,0.606155]
[1734934692092,1.26,3296.4,3295.3,3.03461]
[1734934692303,1.26,3296.4,3295.4,3.0345]
[1734934692441,2.0537,3296.5,3295.1,0.606155]
[1734934692642,1.26,3296.5,3295.8,0.0267]
[1734934693264,0.7645,3297.3,3295.8,0.0267]
[1734934693444,0.7645,3297.3,3296.5,3.03347]
[1734934693646,1.26,3297.5,3296.5,3.06017]
[1734934693838,1.26,3297.5,3296.5,0.332717]
[1734934694037,3.03278,3297.3,3296.1,0.0267]
[1734934694244,1.26,3297.5,3296.4,3.0336]
[1734934694545,1.26,3297.5,3296.5,3.03351]
[1734934695140,0.31684463,3297.4,3296.5,3.03351]
[1734934697060,0.31684463,3297.4,3296.1,3.0267]
[1734934697271,0.31684463,3297.4,3296.2,0.66818752]
[1734934697463,0.31684463,3297.4,3296.1,0.0267]
[1734934697960,0.31684463,3297.4,3296.4,3.03359]
[1734934698509,0.31684463,3297.4,3296.2,3.0]
[1734934698687,3.03282,3297.3,3296.2,3.0]
[1734934699007,0.8325,3297.2,3295.6,12.93923098]
[1734934699298,0.8325,3297.2,3295.1,4.29154065]
[1734934699299,0.8325,3296.9,3295.2,3.0614]
[1734934699493,0.8325,3296.1,3295.2,0.0267]
[1734934699679,0.8325,3296.1,3295.1,1.25680065]
[1734934700260,1.26,3296.4,3295.1,1.25680065]
[1734934700503,1.26,3296.4,3295.4,3.03451]
[1734934700852,1.26,3296.4,3295.5,0.0267]
[1734934701145,1.26,3296.4,3295.5,3.0267]
[1734934701569,1.26,3296.4,3295.2,3.68859742]
[1734934701570,4.29362,3296.4,3295.2,3.68859742]
[1734934701790,0.8284,3296.3,3294.7,0.62816586]
[1734934701950,0.8284,3295.5,3294.4,3.03545]
[1734934702162,0.8284,3295.5,3294.9,3.03499]
[1734934702381,1.26,3295.7,3294.9,3.03499]
[1734934702585,1.26,3295.7,3294.7,3.03513]
[1734934702896,1.26,3295.7,3295.0,3.03484]
[1734934703402,2.0308,3295.9,3295.0,3.39727259]
[1734934703603,2.0308,3295.9,3295.2,3.06139]
[1734934704447,2.0308,3295.9,3295.2,0.0267]
[1734934704848,1.26,3295.9,3295.3,3.0346]
[1734934705888,1.26,3295.9,3295.2,0.0267]
[1734934706068,1.26,3295.9,3295.2,3.73413566]
[1734934706469,1.26,3295.9,3295.1,3.303484]
[1734934706809,1.26,3296.1,3295.0,3.0]
[1734934707399,1.26,3296.1,3295.3,3.03461]
[1734934707563,1.26,3296.1,3295.5,3.03436]
[1734934708306,1.26,3296.1,3295.0,3.39727259]
[1734934708514,1.26,3296.1,3295.5,3.03444]
[1734934709555,2.0245,3296.2,3295.5,3.03444]
[1734934710012,2.0464,3296.5,3295.8,3.03415]
[1734934710313,2.0464,3296.9,3296.2,3.39727259]
[1734934710467,2.0464,3297.3,3296.6,3.03341]
[1734934710674,2.0464,3297.3,3296.3,3.0267]
[1734934710988,1.26,3297.3,3297.2,3.03287]
[1734934711507,4.21805909,3297.9,3297.4,3.03269]
[1734934711691,2.0464,3297.9,3297.2,3.03285]
[1734934711888,2.0464,3297.9,3297.3,0.305955]
[1734934712055,2.0464,3297.9,3297.3,3.338695]
[1734934712417,2.0464,3297.9,3297.3,0.305955]
[1734934712710,2.0464,3297.9,3297.1,3.03287]
[1734934713570,2.0464,3297.9,3296.8,3.0]
[1734934713771,1.26,3297.9,3297.1,3.03296]
[1734934714104,2.0856,3298.3,3297.3,3.0]
[1734934714285,1.2608,3298.5,3297.3,3.5767]
[1734934714494,1.2608,3298.5,3297.8,3.03231]
[1734934714892,1.2608,3298.5,3297.8,3.03224]
[1734934715293,1.2608,3298.5,3297.6,3.0]
[1734934715461,1.2608,3298.5,3297.6,3.03249]
[1734934715657,1.2608,3298.5,3297.7,0.303249]
[1734934716095,0.7683,3298.4,3297.0,8.98]
[1734934716406,0.7763,3298.0,3297.0,8.98]
[1734934716790,5.06845,3298.0,3296.9,4.25680065]
[1734934717966,5.06845,3298.0,3296.9,3.0]
[1734934719913,2.0363,3298.0,3296.8,3.0]
[1734934720078,2.0363,3298.0,3297.1,3.0]
[1734934720273,2.0363,3298.0,3297.2,3.0328]
[1734934720688,2.0363,3298.0,3296.9,3.72499805]
[1734934720910,5.06844,3298.0,3296.8,3.0]
[1734934721113,3.03226,3297.9,3296.5,3.03348]
[1734934721324,0.8065,3297.0,3296.0,3.03389]
[1734934722391,0.8065,3297.0,3296.1,4.29066065]
[1734934722591,0.8065,3297.0,3296.2,3.0]
[1734934722826,0.8065,3297.0,3296.2,4.02906606]
[1734934723325,0.8065,3297.0,3296.1,4.29066065]
[1734934723326,0.8065,3296.5,3295.4,4.29133065]
[1734934723537,3.84004,3296.5,3295.4,1.25680065]
[1734934723699,0.7797,3296.4,3295.4,1.25680065]
[1734934723902,3.03372,3296.3,3295.4,1.25680065]
[1734934724200,0.7797,3296.4,3295.4,1.25680065]
[1734934724400,0.7797,3296.4,3295.5,0.31420016]
[1734934724930,3.81334,3296.4,3295.4,1.25680065]
[1734934725104,0.7797,3295.7,3294.7,3.91938051]
[1734934725305,0.7797,3295.7,3294.6,3.03525]
[1734934726251,0.7797,3295.7,3294.5,3.03527]
[1734934726553,3.03455,3295.4,3294.3,3.0]
[1734934726689,0.8118,3295.0,3294.0,4.28350065]
[1734934726890,1.26,3295.1,3295.0,3.0349]